bitfinex/quotes_ETHUSD_20251124
["timestamp","ask_amount","ask_price","bid_price","bid_amount"]
[1763991664400,0.33001911,2830.0,2829.1,0.1678]
[1763991664620,0.33001911,2829.9,2829.1,0.1678]
[1763991664900,0.33001911,2829.8,2829.1,0.1678]
[1763991665192,0.33001911,2829.7,2829.1,0.26196]
[1763991665398,0.68,2829.9,2829.1,0.1678]
[1763991665596,0.32962359,2829.8,2829.1,0.26196]
[1763991665777,0.32962359,2829.7,2829.1,0.1678]
[1763991666112,0.68,2829.9,2829.1,0.1678]
[1763991666268,0.32954184,2829.8,2829.1,0.26196]
[1763991666467,0.32954184,2829.7,2829.1,0.1678]
[1763991666668,0.68,2829.9,2829.1,0.26196]
[1763991666971,0.32950839,2829.8,2829.1,0.26196]
[1763991667169,0.1805,2829.9,2829.1,0.1678]
[1763991667394,0.32944387,2829.8,2829.1,0.1678]
[1763991667592,0.68,2829.9,2829.1,0.26196]
[1763991667788,0.32941164,2829.8,2829.1,0.1678]
[1763991668005,0.32941137,2829.8,2829.1,0.75016]
[1763991668306,0.32941137,2829.8,2829.2,0.09416]
[1763991668678,0.50991137,2829.9,2829.3,0.4882]
[1763991668867,0.50991137,2829.9,2829.1,0.1678]
[1763991668868,0.1805,2829.9,2829.2,0.4882]
[1763991669211,0.229,2830.5,2829.5,0.09416]
[1763991669397,0.4995,2830.3,2829.5,0.09416]
[1763991669600,0.32921455,2830.2,2829.5,0.09416]
[1763991669811,0.32921455,2830.1,2829.4,0.09416]
[1763991669997,0.4995,2830.7,2829.5,0.09416]
[1763991670198,1.3207533,2831.9,2829.2,0.4882]
[1763991670199,0.4995,2830.4,2829.2,0.58236]
[1763991670400,0.32915655,2830.3,2829.5,0.09416]
[1763991670588,0.32915655,2830.3,2829.6,0.09416]
[1763991670908,0.32915655,2830.3,2829.2,0.58236]
[1763991671114,0.32915655,2830.3,2829.6,0.09416]
[1763991671315,0.32915655,2830.3,2829.7,0.09416]
[1763991671477,0.32915655,2830.3,2829.1,3.93142176]
[1763991671678,0.32915655,2830.8,2829.8,0.09416]
[1763991671880,0.4995,2830.6,2829.7,0.09416]
[1763991672216,0.32915655,2830.5,2829.6,0.09416]
[1763991672510,0.32915655,2830.5,2829.7,0.09416]
[1763991672811,0.4995,2830.4,2829.5,0.09416]
[1763991673012,0.4995,2830.4,2829.6,0.09416]
[1763991673313,0.4995,2830.4,2829.3,0.4882]
[1763991673517,0.4995,2830.4,2829.8,0.09416]
[1763991673814,0.407504,2830.9,2829.4,0.47528121]
[1763991673815,0.5015,2830.9,2830.1,0.09416]
[1763991674186,0.5015,2830.9,2830.1,0.26116]
[1763991675233,0.5015,2830.9,2830.1,0.167]
[1763991675435,0.5015,2830.9,2830.1,0.26116]
[1763991675730,0.5015,2830.9,2830.2,0.09416]
[1763991675930,0.5015,2830.9,2830.1,0.167]
[1763991676948,0.002,2830.9,2830.4,0.09416]
[1763991677099,0.002,2830.9,2830.4,0.58236]
[1763991677505,0.002,2830.9,2830.4,0.09416]
[1763991678126,0.002,2830.9,2830.5,0.58236]
[1763991678306,0.002,2830.9,2830.6,0.09416]
[1763991678507,0.002,2830.9,2830.8,0.4866]
[1763991678801,0.002,2830.9,2830.8,0.58076]
[1763991679129,0.002,2830.9,2830.8,0.4866]
[1763991679742,0.002,2830.9,2830.1,4.42603751]
[1763991679743,0.6642,2830.9,2830.1,0.167]
[1763991679941,0.4669,2830.2,2829.2,0.92480159]
[1763991680160,0.3658,2830.0,2829.1,0.1678]
[1763991680309,0.3658,2830.0,2829.2,0.09416]
[1763991680505,0.6527,2829.9,2829.2,0.09416]
[1763991681207,0.6527,2829.9,2829.3,0.09416]
[1763991682450,0.6527,2829.9,2829.2,0.09416]
[1763991682618,0.6527,2829.9,2829.1,0.1678]
[1763991683237,0.6527,2829.9,2829.2,0.09416]
[1763991683665,0.4584,2829.8,2829.2,0.09416]
[1763991684659,0.4584,2829.8,2829.1,0.1678]
[1763991685084,0.4584,2829.8,2829.0,0.001]
[1763991685736,0.4679,2829.1,2829.0,0.001]
[1763991686281,1.25642121,2829.1,2829.0,0.001]
[1763991688370,1.25628809,2829.1,2829.0,0.001]
[1763991689475,1.66179209,2829.1,2829.0,0.001]
[1763991691976,1.25628809,2829.1,2829.0,0.001]
[1763991692183,0.4679,2829.1,2829.0,0.001]
[1763991692654,0.6864,2829.3,2829.0,0.001]
[1763991692857,0.228,2829.3,2829.0,0.001]
[1763991693286,0.1943,2829.9,2829.2,0.6422]
[1763991693651,0.4584,2829.8,2829.2,0.6422]
[1763991694045,0.1943,2829.9,2829.2,0.6422]
[1763991694453,0.1943,2829.9,2829.2,0.73636]
[1763991694763,0.1943,2829.9,2829.2,1.19546]
[1763991696282,0.1943,2829.9,2829.2,1.1013]
[1763991696578,0.1935,2829.9,2829.2,1.1013]
[1763991698366,0.1935,2829.9,2829.2,1.19546]
[1763991698572,0.1935,2829.9,2829.2,1.1013]
[1763991700448,0.6519,2829.9,2829.2,0.6422]
[1763991707193,0.4986,2829.8,2829.2,0.4744]
[1763991707378,0.4986,2829.8,2829.0,0.001]
[1763991707545,0.4986,2829.8,2829.1,0.1686]
[1763991709814,0.4986,2829.8,2829.0,0.001]
[1763991710014,0.4845,2829.2,2829.0,0.001]
[1763991710161,0.4986,2829.8,2829.0,0.001]
[1763991710511,0.466,2829.7,2829.0,0.001]
[1763991713260,0.1935,2829.9,2829.1,0.1686]
[1763991713462,0.4845,2829.1,2829.0,0.001]
[1763991714003,0.228,2830.0,2829.0,0.001]
[1763991714004,0.4040663,2830.3,2829.0,0.495]
[1763991714208,12.83580368,2830.8,2829.0,0.495]
[1763991714209,3.20488871,2831.5,2831.3,0.494]
[1763991714533,0.1944,2832.9,2830.7,0.167]
[1763991714534,3.16915397,2831.4,2831.2,0.232]
[1763991714656,0.89624,2831.9,2831.2,0.232]
[1763991714858,0.89624,2831.9,2830.8,0.4776]
[1763991714859,2.23922304,2831.9,2830.8,0.7106]
[1763991715103,1.57882304,2831.8,2830.8,0.7106]
[1763991715415,0.1944,2832.9,2831.8,0.494]
[1763991715416,0.1944,2832.3,2831.8,0.494]
[1763991715719,0.1944,2832.3,2831.6,0.09416]
[1763991716058,0.1944,2832.3,2831.4,2.34781744]
[1763991716283,0.1944,2832.3,2831.6,0.09416]
[1763991716482,0.1944,2832.3,2831.4,0.4776]
[1763991716483,0.1944,2832.3,2831.5,1.87021744]
[1763991716669,0.466,2832.8,2832.2,6.54639914]
[1763991717670,0.1944,2832.9,2832.3,0.09416]
[1763991717887,0.233,2833.6,2832.1,0.1738]
[1763991717888,0.466,2833.4,2832.7,6.54639914]
[1763991718572,0.466,2833.4,2832.6,0.09416]
[1763991718771,0.466,2833.4,2832.4,0.09416]
[1763991718962,0.466,2833.4,2832.3,0.57176]
[1763991719162,0.466,2833.4,2832.3,0.4776]
[1763991719382,0.466,2833.4,2832.6,0.09416]
[1763991719569,0.466,2833.4,2832.3,0.4776]
[1763991720163,0.4652,2833.4,2832.3,0.57176]
[1763991720404,0.4652,2833.4,2832.3,0.4776]
[1763991720613,0.4652,2833.4,2832.3,4.00828902]
[1763991720913,0.233,2833.6,2832.3,0.7106]
[1763991721097,0.233,2833.6,2832.3,0.4776]
[1763991721281,0.233,2833.6,2832.5,0.09416]
[1763991721594,0.233,2833.6,2832.3,0.4776]
[1763991721795,0.233,2833.6,2831.7,0.1746]
[1763991721796,0.6789,2832.4,2831.7,0.1746]
[1763991722006,0.4845,2832.3,2831.7,0.1746]
[1763991722176,0.1944,2832.6,2831.7,0.1746]
[1763991722374,0.7275123,2833.7,2831.7,0.1746]
[1763991722375,0.4817293,2832.7,2831.7,0.1746]
[1763991722585,0.4817293,2832.7,2831.1,1.87021744]
[1763991722586,0.405504,2832.6,2831.1,1.87021744]
[1763991722902,0.466,2832.6,2831.2,0.57176]
[1763991723072,0.466,2832.6,2831.4,0.09416]
[1763991723297,0.466,2832.6,2831.4,0.57176]
[1763991723576,0.466,2832.6,2831.4,0.4776]
[1763991723907,0.466,2832.6,2831.0,0.09416]
[1763991723908,0.405504,2832.4,2831.0,0.09416]
[1763991724217,0.466,2832.6,2831.3,0.09416]
[1763991724422,0.466,2832.5,2831.3,0.09416]
[1763991724869,0.466,2832.5,2831.0,0.4776]
[1763991725065,0.466,2832.5,2831.1,0.09416]
[1763991725279,0.405504,2832.4,2830.9,0.09416]
[1763991725478,0.405504,2832.2,2830.7,0.167]
[1763991725869,0.405504,2832.0,2830.7,0.167]
[1763991726175,0.405504,2832.0,2830.7,0.26116]
[1763991726391,0.72559411,2832.4,2830.7,0.167]
[1763991726392,0.6604,2831.9,2830.7,0.167]
[1763991726699,0.405504,2831.8,2830.0,2.58081744]
[1763991727018,0.871504,2831.8,2830.4,0.09416]
[1763991727226,0.405504,2831.6,2830.4,0.09416]
[1763991727430,0.405504,2831.6,2830.2,0.57176]
[1763991727732,0.466,2831.5,2830.2,0.57176]
[1763991727930,0.466,2831.5,2830.2,0.4776]
[1763991728097,0.466,2831.5,2830.3,0.09416]
[1763991728724,0.466,2831.5,2830.2,0.4776]
[1763991728911,0.466,2831.5,2830.3,0.09416]
[1763991729079,0.466,2831.5,2830.2,0.4776]
[1763991729525,0.466,2831.5,2830.3,0.09416]
[1763991729727,0.466,2831.5,2830.2,0.4776]
[1763991730327,0.405504,2831.4,2830.2,0.57176]
[1763991730529,0.466,2831.5,2830.3,0.03533194]
[1763991730853,0.466,2831.4,2830.4,0.09416]
[1763991731186,0.466,2831.4,2830.2,0.4776]
[1763991732132,0.466,2831.4,2830.4,0.09416]
[1763991732297,0.466,2831.4,2830.2,0.4776]
[1763991732505,0.466,2831.4,2830.2,0.57176]
[1763991732899,0.466,2831.4,2830.4,0.001]
[1763991733101,0.466,2831.4,2830.4,0.09516]
[1763991733328,0.466,2831.4,2830.4,0.57276]
[1763991733685,0.466,2831.4,2830.4,0.001]
[1763991735477,0.6789,2830.5,2830.4,0.001]
[1763991735832,1.1449,2830.5,2830.4,0.001]
[1763991740538,0.8922,2830.8,2830.4,0.001]
[1763991740756,0.4891,2830.5,2830.4,0.001]
[1763991741462,0.9536,2830.5,2830.4,0.001]
[1763991743974,0.9528,2830.5,2830.4,0.001]
[1763991744865,0.4883,2830.5,2830.4,0.001]
[1763991745072,0.4277,2830.8,2830.4,0.001]
[1763991745235,0.8922,2830.8,2830.4,0.001]
[1763991745635,0.4891,2830.5,2830.4,0.001]
[1763991746170,0.9536,2830.5,2830.4,0.001]
[1763991749789,8.52469811,2830.5,2830.4,0.001]
[1763991752586,8.11919411,2830.5,2830.4,0.001]
[1763991755386,7.16559411,2830.5,2830.4,0.001]
[1763991755587,7.16559411,2830.5,2830.4,0.4858]
[1763991756073,7.16559411,2830.5,2830.4,0.001]
[1763991756277,8.11919411,2830.5,2830.4,0.001]
[1763991766524,8.13329411,2830.5,2830.4,0.001]
[1763991767710,8.13249411,2830.5,2830.4,0.001]
[1763991769821,7.65389411,2830.5,2830.4,0.001]
[1763991770117,8.15369411,2830.5,2830.4,0.001]
[1763991770488,8.15569411,2830.5,2830.4,0.001]
[1763991774608,8.48741684,2830.5,2830.4,0.001]
[1763991775593,8.15569411,2830.5,2830.4,0.001]
[1763991776345,8.56119811,2830.5,2830.4,0.001]
[1763991776889,7.88489411,2830.5,2830.4,0.001]
[1763991777104,8.79019811,2830.5,2830.4,0.001]
[1763991777326,8.29039811,2830.5,2830.4,0.001]
[1763991777729,8.79019811,2830.5,2830.4,0.001]
[1763991780836,8.79019811,2830.5,2830.4,1.0811]
[1763991780837,0.22759411,2830.5,2830.4,1.0811]
[1763991781037,0.12,2831.2,2830.5,0.405504]
[1763991781334,0.229,2832.1,2830.9,0.09416]
[1763991781335,0.12,2832.0,2830.9,0.09416]
[1763991781505,0.1803,2831.9,2830.4,2.67215617]
[1763991781707,0.1803,2831.9,2830.4,0.1704]
[1763991782036,0.6801,2831.9,2830.6,0.09416]
[1763991782613,0.6801,2831.9,2830.4,0.1704]
[1763991782614,0.4998,2831.8,2830.5,0.09416]
[1763991783117,0.4998,2831.8,2830.4,0.1704]
[1763991783325,0.4998,2831.8,2830.5,0.09416]
[1763991783524,0.4998,2831.8,2830.4,0.1704]
[1763991783729,0.4998,2831.8,2830.6,0.09416]
[1763991784444,0.405504,2831.9,2830.7,0.09416]
[1763991784761,0.229,2831.8,2830.8,0.09416]
[1763991785438,0.229,2831.8,2830.4,0.1704]
[1763991785936,0.229,2831.8,2830.7,0.09416]
[1763991786136,0.229,2831.8,2830.6,0.09416]
[1763991786304,0.4998,2831.7,2830.4,0.1704]
[1763991786841,0.4998,2831.7,2830.5,0.09416]
[1763991787049,0.4998,2831.7,2830.6,0.09416]
[1763991787207,0.4998,2831.7,2830.5,0.09416]
[1763991787407,0.4998,2831.7,2830.6,0.09416]
[1763991787643,0.4998,2831.7,2830.7,0.09416]
[1763991787942,0.4998,2831.7,2830.5,0.09416]
[1763991788450,0.4998,2831.7,2830.6,0.09416]
[1763991788648,0.5018,2831.7,2830.6,0.09416]
[1763991789425,0.5018,2831.7,2830.5,0.09416]
[1763991789621,0.002,2831.7,2830.4,10.74141402]
[1763991789819,0.002,2831.7,2830.9,0.09416]
[1763991790446,0.002,2831.7,2831.0,0.09416]
[1763991790646,0.002,2831.7,2830.6,0.405504]
[1763991790850,0.002,2831.7,2831.6,0.81975411]
[1763991791284,0.002,2831.7,2831.0,7.40821553]
[1763991791583,0.002,2831.7,2831.4,0.09416]
[1763991791584,0.0012,2831.7,2831.4,0.09416]
[1763991791750,0.0012,2831.7,2831.6,0.09416]
[1763991794909,0.0012,2831.7,2831.6,0.81975411]
[1763991795109,0.0012,2831.7,2831.6,2.02773902]
[1763991795778,0.122,2832.0,2831.9,0.09416]
[1763991796081,0.122,2832.0,2831.8,0.32316]
[1763991796278,0.122,2832.0,2831.9,0.09416]
[1763991800217,0.122,2832.0,2831.9,0.229]
[1763991800511,0.122,2832.0,2831.9,0.32316]
[1763991801416,0.122,2832.0,2831.9,0.78117551]
[1763991801900,0.122,2832.0,2831.9,0.32316]
[1763991802097,0.122,2832.0,2831.9,0.09416]
[1763991802308,0.122,2832.0,2831.9,0.32316]
[1763991802508,0.122,2832.0,2831.9,0.228]
[1763991803010,0.122,2832.0,2831.9,0.32216]
[1763991803411,0.122,2832.0,2831.9,0.228]
[1763991803611,0.122,2832.0,2831.7,0.09416]
[1763991803845,0.122,2832.0,2831.8,0.5249339]
[1763991804158,0.122,2832.0,2831.9,0.09416]
[1763991805141,2.164735,2832.0,2831.8,0.2027739]
[1763991805547,1.0926,2831.9,2830.7,2.89559502]
[1763991805715,1.0926,2831.9,2831.6,0.001]
[1763991805913,0.6367,2831.9,2831.6,0.001]
[1763991807638,2.164735,2832.0,2831.6,0.09516]
[1763991807817,2.1460192,2832.0,2831.6,0.09516]
[1763991808017,2.1460192,2832.0,2831.6,0.001]
[1763991808214,2.1460192,2832.0,2831.8,0.09416]
[1763991809114,2.1460192,2832.0,2831.9,0.09416]
[1763991809344,2.1460192,2832.0,2831.8,0.09416]
[1763991809544,2.1260192,2832.0,2831.8,0.09416]
[1763991810268,2.1260192,2832.0,2831.6,0.001]
[1763991810474,2.1260192,2832.0,2831.9,0.09416]
[1763991810637,2.1260192,2832.0,2831.6,0.001]
[1763991810837,2.1260192,2832.0,2831.9,0.09416]
[1763991811583,2.1260192,2832.0,2831.6,0.001]
[1763991811783,2.1260192,2832.0,2831.9,0.09416]
[1763991812788,2.1260192,2832.0,2831.6,0.001]
[1763991812789,3.0342192,2832.0,2831.6,0.001]
[1763991812968,0.6367,2831.7,2831.6,0.001]
[1763991813594,1.0926,2831.7,2831.6,0.001]
[1763991815381,1.0918,2831.7,2831.6,0.001]
[1763991817157,1.3198,2831.7,2831.6,0.001]
[1763991818086,0.4523,2831.7,2831.6,0.001]
[1763991818254,0.9082,2831.7,2831.6,0.001]
[1763991824090,8.47849811,2831.7,2831.6,0.001]
[1763991824257,8.70649811,2831.7,2831.6,0.001]
[1763991824651,8.70849811,2831.7,2831.6,0.001]
[1763991826292,7.16679411,2831.7,2831.6,0.001]
[1763991826699,7.63689411,2831.7,2831.6,0.001]
[1763991827192,8.10049411,2831.7,2831.6,0.001]
[1763991827608,7.63689411,2831.7,2831.6,0.001]
[1763991827760,8.10049411,2831.7,2831.6,0.001]
[1763991830529,7.63689411,2831.7,2831.6,0.001]
[1763991830721,8.09539411,2831.7,2831.6,0.001]
[1763991832470,7.5978,2831.7,2831.6,0.001]
[1763991832603,8.003304,2831.7,2831.6,0.001]
[1763991833005,7.5978,2831.7,2831.6,0.001]
[1763991834329,6.4412,2831.7,2831.6,0.0961]
[1763991834545,6.4412,2831.7,2831.6,0.001]
[1763991835431,7.3497,2831.7,2831.6,0.001]
[1763991837702,8.07529411,2831.7,2831.6,0.001]
[1763991839106,8.07449411,2831.7,2831.6,0.001]
[1763991839706,8.47999811,2831.7,2831.6,0.001]
[1763991841638,8.07449411,2831.7,2831.6,0.001]
[1763991850764,7.61599411,2831.7,2831.6,0.001]
[1763991850971,8.07449411,2831.7,2831.6,0.001]
[1763991851173,7.61599411,2831.7,2831.6,0.001]
[1763991851665,8.07449411,2831.7,2831.6,0.001]
[1763991854170,7.61599411,2831.7,2831.6,0.001]
[1763991855237,7.16599411,2831.7,2831.6,0.001]
[1763991857975,7.61599411,2831.7,2831.6,0.001]
[1763991858565,7.16599411,2831.7,2831.6,0.001]
[1763991858763,6.4404,2831.7,2831.6,0.0961]
[1763991861374,6.4404,2831.7,2831.6,0.1912]
[1763991861953,6.4404,2831.7,2831.6,0.0961]
[1763991862850,6.4396,2831.7,2831.6,0.0961]
[1763991863175,0.002,2831.7,2831.6,0.001]
[1763991863379,0.002,2831.7,2831.6,0.0961]
[1763991864651,0.4625,2831.7,2831.6,0.001]
[1763991864955,0.002,2831.7,2831.6,0.001]
[1763991865176,0.002,2831.7,2831.6,0.0961]
[1763991865695,0.002,2831.7,2831.6,0.1912]
[1763991866554,0.002,2831.7,2831.6,0.0961]
[1763991869089,0.002,2831.7,2831.6,4.8963108]
[1763991869288,0.002,2831.7,2831.6,0.59544108]
[1763991869788,0.002,2831.7,2831.6,0.0961]
[1763991870978,0.002,2831.7,2831.6,0.1912]
[1763991872521,0.002,2831.7,2831.6,4.9914108]
[1763991872679,0.002,2831.7,2831.6,5.0914108]
[1763991872885,0.002,2831.7,2831.6,4.9914108]
[1763991873298,0.002,2831.7,2831.6,0.61814108]
[1763991874323,0.002,2831.7,2831.6,0.71324108]
[1763991875408,0.002,2831.7,2831.6,0.61814108]
[1763991875607,0.002,2831.7,2831.6,0.001]
[1763991875820,0.9382,2831.7,2831.6,0.001]
[1763991876410,0.002,2831.7,2831.6,0.0961]
[1763991877319,0.002,2831.7,2831.6,0.001]
[1763991877320,0.4625,2831.7,2831.6,0.001]
[1763991877520,0.9382,2831.7,2831.6,0.001]
[1763991878026,0.4625,2831.7,2831.6,0.001]
[1763991878519,0.002,2831.7,2831.6,0.001]
[1763991878820,0.002,2831.7,2831.6,0.0961]
[1763991881100,0.002,2831.7,2831.6,0.001]
[1763991881446,0.002,2831.7,2831.6,0.0961]
[1763991883294,0.4625,2831.7,2831.6,0.001]
[1763991883928,0.002,2831.7,2831.6,0.001]
[1763991884223,0.002,2831.7,2831.6,0.0961]
[1763991885549,0.4625,2831.7,2831.6,0.001]
[1763991885851,0.002,2831.7,2831.6,0.0961]
[1763991886538,0.0012,2831.7,2831.6,0.0961]
[1763991887450,0.0012,2831.7,2831.6,1.01679411]
[1763991887653,0.0012,2831.7,2831.6,0.87310049]
[1763991888316,0.0012,2831.7,2831.6,0.67800049]
[1763991888516,0.0012,2831.7,2831.6,1.1577594]
[1763991888917,0.0012,2831.7,2831.6,0.0961]
[1763991892548,0.0012,2831.7,2831.6,0.1912]
[1763991892966,0.0012,2831.7,2831.6,0.0961]
[1763991894034,0.0012,2831.7,2831.6,0.3231]
[1763991897834,0.0012,2831.7,2831.6,0.0961]
[1763991898031,0.4839,2831.7,2831.6,0.001]
[1763991898454,0.0012,2831.7,2831.6,0.0961]
[1763991899634,0.9395,2831.7,2831.6,0.001]
[1763991900068,0.4839,2831.7,2831.6,0.001]
[1763991900486,0.0012,2831.7,2831.6,0.001]
[1763991901085,0.0012,2831.7,2831.6,0.0961]
[1763991901890,0.4839,2831.7,2831.6,0.001]
[1763991902049,0.0012,2831.7,2831.6,0.001]
[1763991902249,0.0012,2831.7,2831.6,0.0961]
[1763991903249,0.0012,2831.7,2831.6,0.001]
[1763991903755,0.0012,2831.7,2831.6,0.0961]
[1763991903957,0.0012,2831.7,2831.6,0.001]
[1763991904502,0.4839,2831.7,2831.6,0.001]
[1763991904683,0.9395,2831.7,2831.6,0.001]
[1763991910392,0.9387,2831.7,2831.6,0.001]
[1763991911605,1.66429411,2831.7,2831.6,0.001]
[1763991912205,2.06979811,2831.7,2831.6,0.001]
[1763991912392,0.72559411,2831.5,2831.1,0.001]
[1763991912597,0.72559411,2831.5,2830.4,0.001]
[1763991912598,0.72559411,2830.5,2830.4,0.001]
[1763991912898,1.61609411,2830.5,2830.4,0.001]
[1763991913118,2.07169411,2830.5,2830.4,0.001]
[1763991913467,1.3461,2830.5,2830.4,0.001]
[1763991913665,2.07169411,2830.5,2830.4,0.001]
[1763991914668,1.1191,2830.5,2830.4,0.001]
[1763991915006,0.227,2830.5,2830.4,0.001]
[1763991915510,0.227,2830.5,2830.4,0.1001]
[1763991915993,0.227,2830.9,2830.4,0.1001]
[1763991916193,0.227,2830.9,2830.4,0.001]
[1763991916391,0.46284,2830.9,2830.4,0.001]
[1763991916579,0.4827,2830.5,2830.4,0.001]
[1763991916908,0.227,2830.9,2830.4,0.001]
[1763991917685,0.4827,2830.5,2830.4,0.001]
[1763991918012,0.4556,2830.8,2830.4,0.001]
[1763991918177,0.227,2830.9,2830.4,0.001]
[1763991918700,0.6826,2830.9,2830.4,0.001]
[1763991919704,0.227,2830.9,2830.8,0.0991]
[1763991920105,0.227,2830.9,2830.5,0.24070921]
[1763991920407,0.227,2831.2,2830.8,0.0991]
[1763991920799,0.6891,2831.2,2830.5,0.14160921]
[1763991921177,0.6891,2831.2,2830.4,0.001]
[1763991921377,0.6891,2831.2,2830.4,0.24171322]
[1763991922101,0.227,2831.2,2830.5,0.0991]
[1763991922683,0.227,2831.2,2830.5,0.1991]
[1763991922902,0.4621,2831.1,2830.5,0.52910852]
[1763991923101,0.4621,2831.1,2830.4,0.14261322]
[1763991924525,0.4621,2831.1,2830.4,0.001]
[1763991925708,0.227,2831.2,2830.4,0.001]
[1763991925927,0.227,2831.2,2830.4,0.1001]
[1763991926633,0.6891,2831.2,2830.4,0.1001]
[1763991926928,0.227,2831.2,2830.4,0.1001]
[1763991927127,0.6891,2831.2,2830.4,0.1001]
[1763991927692,0.483,2830.5,2830.4,0.001]
[1763991928132,0.9451,2830.5,2830.4,0.001]
[1763991928329,0.483,2830.5,2830.4,0.001]
[1763991928530,0.227,2830.7,2830.4,0.1001]
[1763991929037,0.6891,2830.7,2830.4,0.1001]
[1763991929400,0.6891,2830.7,2830.4,0.001]
[1763991929832,0.227,2830.7,2830.4,0.001]
[1763991930146,0.227,2830.7,2830.6,0.0991]
[1763991930540,0.227,2830.7,2830.4,0.001]
[1763991931008,0.483,2830.5,2830.4,0.001]
[1763991931837,0.227,2830.7,2830.4,0.1001]
[1763991932239,0.483,2830.5,2830.4,0.001]
[1763991933046,0.6891,2830.7,2830.4,0.001]
[1763991933732,0.6891,2830.7,2830.5,0.001]
[1763991934140,0.6883,2830.7,2830.5,0.001]
[1763991934340,0.483,2830.6,2830.5,0.001]
[1763991934540,0.9451,2830.6,2830.5,0.001]
[1763991935250,0.2262,2830.7,2830.5,0.001]
[1763991936760,0.2262,2830.7,2830.6,0.0991]
[1763991936945,0.2262,2830.7,2830.5,0.001]
[1763991937146,0.33050034,2831.0,2830.6,0.1982]
[1763991937358,0.33050034,2831.1,2830.6,0.1982]
[1763991937575,0.33050034,2831.1,2830.6,0.13442819]
[1763991937726,0.002,2831.2,2831.0,0.0991]
[1763991938458,0.33250034,2831.2,2831.0,0.0991]
[1763991938768,0.002,2831.2,2831.0,0.0991]
[1763991939069,0.33250034,2831.2,2831.0,0.0991]
[1763991939378,0.483,2831.1,2830.5,0.001]
[1763991941078,0.002,2831.2,2831.0,0.0991]
[1763991941367,0.33087659,2831.1,2831.0,0.0991]
[1763991941758,0.33087659,2831.1,2830.6,0.14160119]
[1763991942663,0.33087659,2831.1,2830.6,0.24070119]
[1763991943573,0.002,2831.2,2830.6,0.14160119]
[1763991943752,0.79316718,2831.1,2830.6,0.14160119]
[1763991943951,0.4621,2831.1,2830.6,0.14160119]
[1763991944362,0.4621,2831.1,2830.5,0.001]
[1763991944561,0.33118535,2831.0,2830.5,0.14260119]
[1763991945483,0.33118535,2831.0,2830.5,0.24170119]
[1763991945671,0.4621,2831.1,2830.5,0.001]
[1763991945849,0.331221,2831.0,2830.5,0.001]
[1763991946055,0.4641,2831.2,2830.5,0.001]
[1763991946254,0.33122102,2831.1,2830.5,0.001]
[1763991946450,0.33122102,2831.0,2830.5,0.001]
[1763991946784,0.4641,2831.2,2830.5,0.2001]
[1763991946982,0.33121782,2831.1,2830.5,0.2001]
[1763991947185,0.33121782,2831.0,2830.5,0.2001]
[1763991947480,0.002,2831.2,2830.5,0.001]
[1763991947680,0.33121801,2831.1,2830.5,0.001]
[1763991947848,0.33121801,2831.0,2830.5,0.001]
[1763991948052,0.4989,2831.2,2830.5,0.001]
[1763991948289,0.33121801,2831.1,2830.5,0.101]
[1763991948474,0.33121801,2831.0,2830.5,0.2001]
[1763991948679,0.4989,2831.2,2830.5,0.2001]
[1763991948854,0.33121545,2831.1,2830.5,0.2001]
[1763991949185,0.4989,2831.2,2830.5,0.2001]
[1763991949186,0.33121545,2831.0,2830.5,0.2001]
[1763991949481,0.002,2831.2,2830.5,0.101]
[1763991949680,0.33121465,2831.1,2830.9,0.0991]
[1763991949862,0.33121465,2831.0,2830.9,0.0991]
[1763991950789,0.33121465,2831.0,2830.6,0.0991]
[1763991950975,0.002,2831.2,2830.6,0.0991]
[1763991951176,0.33120543,2831.1,2830.6,0.0991]
[1763991951489,0.33120543,2831.0,2830.5,0.101]
[1763991951653,0.002,2831.2,2830.5,0.2001]
[1763991951853,0.33119705,2831.1,2830.5,0.2001]
[1763991952080,0.33119705,2831.0,2830.5,0.2001]
[1763991952290,0.33119705,2831.1,2830.5,0.001]
[1763991952476,0.33119705,2831.0,2830.5,0.001]
[1763991952975,0.80719705,2831.0,2830.5,0.001]
[1763991953178,0.476,2831.0,2830.5,0.001]
[1763991953584,0.476,2830.9,2830.5,0.001]
[1763991954458,0.002,2831.2,2830.8,0.0991]
[1763991954672,0.002,2831.2,2830.6,0.1991]
[1763991954673,0.33116183,2831.1,2830.6,0.1991]
[1763991955006,0.002,2831.2,2830.6,0.71431663]
[1763991955201,0.33116457,2831.1,2830.6,0.61521663]
[1763991955376,0.4742,2830.7,2830.6,0.51521663]
[1763991955580,0.4742,2830.7,2830.5,0.001]
[1763991955785,0.4742,2830.6,2830.5,0.001]
[1763991956757,0.002,2831.2,2830.5,0.1001]
[1763991956993,0.33111446,2831.1,2830.6,0.0991]
[1763991957193,0.33111446,2831.0,2830.6,0.0991]
[1763991957780,0.33031446,2831.0,2830.6,0.0991]
[1763991959698,0.4742,2830.7,2830.5,0.001]
[1763991959899,0.7012,2830.6,2830.5,0.001]
[1763991960061,1.1772,2830.6,2830.5,0.001]